bitfinex/quotes_BTCUSD_20250204
["timestamp","ask_amount","ask_price","bid_price","bid_amount"]
[1738668105818,0.151159,99234.0,99224.0,0.152171]
[1738668106034,0.00762874,99235.0,99224.0,0.001]
[1738668106269,0.00762523,99233.0,99224.0,0.001]
[1738668106527,0.20917056,99234.0,99219.0,0.01018103]
[1738668106742,0.0076239,99232.0,99225.0,0.001]
[1738668106880,0.151165,99229.0,99225.0,0.001]
[1738668107091,0.19916412,99233.0,99225.0,0.001]
[1738668107302,0.15751227,99228.0,99219.0,0.151179]
[1738668107525,0.201544,99234.0,99224.0,0.001]
[1738668107712,0.0874,99236.0,99226.0,0.15117]
[1738668107713,0.00634394,99227.0,99226.0,0.15117]
[1738668107910,0.0874,99236.0,99224.0,0.001]
[1738668108110,0.0874,99236.0,99216.0,0.023]
[1738668108111,0.00634219,99227.0,99216.0,0.023]
[1738668108336,0.151159,99233.0,99225.0,0.001]
[1738668108487,0.00634086,99226.0,99225.0,0.001]
[1738668108687,0.0874,99236.0,99225.0,0.151171]
[1738668108925,0.151159,99233.0,99226.0,0.001]
[1738668109911,0.0684,99236.0,99226.0,0.001]
[1738668110765,0.151167,99228.0,99226.0,0.001]
[1738668110952,0.20155,99231.0,99222.0,0.0098635]
[1738668111158,0.201541,99235.0,99225.0,0.001]
[1738668111356,0.13629991,99240.0,99226.0,0.001]
[1738668111763,0.151168,99227.0,99226.0,0.002]
[1738668111969,0.151168,99227.0,99226.0,0.001]
[1738668112455,0.151165,99229.0,99226.0,0.001]
[1738668112686,0.201552,99230.0,99226.0,0.001]
[1738668112903,0.151168,99227.0,99226.0,0.002]
[1738668113114,0.151168,99227.0,99226.0,0.001]
[1738668114192,0.201548,99232.0,99218.0,0.0100777]
[1738668114399,0.151171,99225.0,99218.0,0.1612587]
[1738668114625,0.151171,99225.0,99212.0,0.0781]
[1738668114837,0.0063376,99224.0,99218.0,0.15118]
[1738668115016,0.151171,99226.0,99218.0,0.151181]
[1738668115247,0.00633627,99223.0,99212.0,0.08804142]
[1738668115445,0.0805,99236.0,99224.0,0.0001069]
[1738668115446,0.201541,99236.0,99224.0,0.0001069]
[1738668115649,0.001,99225.0,99224.0,0.0001069]
[1738668116062,0.151171,99225.0,99224.0,0.0001069]
[1738668116900,0.001,99226.0,99224.0,0.0011069]
[1738668117464,0.0002245,99236.0,99230.0,0.151163]
[1738668117666,0.0002245,99236.0,99227.0,0.201556]
[1738668118099,0.0002245,99236.0,99228.0,0.151166]
[1738668118298,0.0002245,99236.0,99229.0,0.201553]
[1738668118647,0.0002245,99236.0,99231.0,0.151161]
[1738668118853,0.0002245,99236.0,99225.0,0.201562]
[1738668119052,0.0002245,99236.0,99227.0,0.001]
[1738668119270,0.1513795,99236.0,99229.0,0.151164]
[1738668119478,0.0002245,99236.0,99226.0,0.20156]
[1738668119687,0.1323785,99237.0,99229.0,0.151164]
[1738668120093,0.0001068,99238.0,99237.0,0.151153]
[1738668120300,0.0001068,99238.0,99227.0,0.201556]
[1738668120301,0.0001068,99238.0,99227.0,0.151167]
[1738668120528,0.0001068,99238.0,99237.0,0.232453]
[1738668120721,0.0001068,99238.0,99237.0,0.50783806]
[1738668120933,0.0001068,99248.0,99247.0,0.151138]
[1738668121141,0.0001068,99248.0,99247.0,0.35853178]
[1738668121389,0.0001068,99248.0,99247.0,0.35732306]
[1738668121628,0.0001068,99248.0,99247.0,0.254938]
[1738668122261,0.0001068,99248.0,99247.0,0.26475806]
[1738668122689,0.0001068,99248.0,99247.0,0.26575806]
[1738668122822,0.0001068,99248.0,99247.0,0.26475806]
[1738668122999,0.0001068,99248.0,99247.0,0.26575806]
[1738668123417,0.0001068,99248.0,99247.0,0.26475806]
[1738668123843,0.0001068,99248.0,99247.0,0.26675806]
[1738668124249,0.0011068,99248.0,99247.0,0.26975806]
[1738668124450,0.0011068,99248.0,99247.0,0.37214312]
[1738668124683,0.0011068,99248.0,99247.0,0.36914312]
[1738668124888,0.0021068,99248.0,99247.0,0.52214312]
[1738668125125,0.0021068,99248.0,99247.0,0.53214312]
[1738668125530,0.0021068,99248.0,99247.0,0.53014312]
[1738668125899,0.00199752,99277.0,99274.0,0.151096]
[1738668126093,0.00199752,99277.0,99251.0,0.023]
[1738668126394,0.00199752,99277.0,99269.0,0.201471]
[1738668126534,0.00199752,99277.0,99275.0,0.151094]
[1738668126733,0.0476,99287.0,99275.0,0.151094]
[1738668126944,0.151079,99286.0,99275.0,0.151094]
[1738668127141,0.198677,99287.0,99276.0,0.151093]
[1738668127572,0.0476,99287.0,99276.0,0.151093]
[1738668127777,0.198677,99287.0,99276.0,0.151093]
[1738668127998,0.0476,99287.0,99276.0,0.151093]
[1738668128210,0.0476,99287.0,99275.0,0.00014157]
[1738668128361,0.0031068,99278.0,99275.0,0.00014157]
[1738668128856,0.00577487,99277.0,99275.0,0.00014157]
[1738668129868,0.14097067,99280.0,99275.0,0.00014157]
[1738668130070,0.00480983,99276.0,99275.0,0.00014157]
[1738668130272,0.0001068,99285.0,99275.0,0.00014157]
[1738668130454,0.151082,99284.0,99275.0,0.00114157]
[1738668130634,0.151084,99283.0,99275.0,0.00114157]
[1738668130837,0.0001068,99285.0,99275.0,0.00114157]
[1738668131039,0.0001068,99285.0,99275.0,0.00314157]
[1738668131244,0.0001068,99285.0,99283.0,0.151082]
[1738668131446,0.0001068,99285.0,99284.0,0.00120855]
[1738668131626,0.0001068,99285.0,99284.0,0.08030855]
[1738668132441,0.0001068,99285.0,99284.0,0.25298506]
[1738668132996,0.0001068,99285.0,99284.0,0.25498506]
[1738668133549,0.0001068,99285.0,99284.0,0.20448506]
[1738668133962,0.0001068,99285.0,99284.0,0.21461913]
[1738668134204,0.0011068,99285.0,99284.0,0.22061913]
[1738668134399,0.0001068,99285.0,99284.0,0.08923407]
[1738668134601,0.0001068,99285.0,99284.0,0.01013407]
[1738668134803,0.151061,99298.0,99287.0,0.151076]
[1738668135086,0.0002245,99301.0,99284.0,0.008]
[1738668135087,0.201409,99300.0,99284.0,0.008]
[1738668135291,0.151064,99296.0,99286.0,0.151078]
[1738668135539,0.201411,99299.0,99283.0,0.00991239]
[1738668135890,0.201411,99299.0,99287.0,0.002]
[1738668136093,0.151059,99299.0,99288.0,0.151075]
[1738668136306,0.151065,99295.0,99287.0,0.002]
[1738668136516,0.151065,99295.0,99286.0,0.151077]
[1738668136748,0.201409,99300.0,99289.0,0.151072]
[1738668136964,0.151061,99298.0,99287.0,0.151076]
[1738668137177,0.151058,99300.0,99289.0,0.151073]
[1738668137399,0.0002245,99301.0,99286.0,0.201438]
[1738668137609,0.1512805,99301.0,99286.0,0.201438]
[1738668137820,0.0002245,99301.0,99285.0,0.20144]
[1738668138262,0.001,99298.0,99287.0,0.006]
[1738668138470,0.151081,99284.0,99283.0,0.002]
[1738668138690,0.151081,99284.0,99275.0,0.00014157]
[1738668138691,0.301093,99276.0,99275.0,0.00014157]
[1738668138903,1.90347806,99276.0,99275.0,0.00014157]
[1738668139158,0.15115,99239.0,99221.0,0.151176]
[1738668139386,0.15115,99239.0,99188.0,0.0825]
[1738668139387,0.52773506,99239.0,99190.0,0.13629991]
[1738668139607,0.52773506,99239.0,99183.0,0.01]
[1738668139608,0.52773506,99239.0,99238.0,0.00059964]
[1738668140689,0.52973506,99239.0,99238.0,0.00059964]
[1738668141531,2.02973506,99239.0,99238.0,0.00059964]
[1738668141736,2.03473506,99239.0,99238.0,0.00159964]
[1738668141940,2.03273506,99239.0,99238.0,0.00059964]
[1738668142370,2.03273506,99239.0,99238.0,0.00159964]
[1738668142371,2.04273506,99239.0,99238.0,0.00159964]
[1738668142789,2.02773506,99239.0,99238.0,0.00059964]
[1738668143273,2.03073506,99239.0,99238.0,0.00059964]
[1738668144120,2.03873506,99239.0,99238.0,0.00159964]
[1738668144780,2.05743368,99239.0,99238.0,0.00159964]
[1738668144994,2.34346508,99239.0,99238.0,0.00159964]
[1738668145415,0.84844879,99239.0,99238.0,0.00159964]
[1738668146897,0.82975017,99239.0,99238.0,0.00159964]
[1738668150975,0.85528807,99239.0,99238.0,0.00159964]
[1738668151253,2.45778279,99239.0,99238.0,0.00159964]
[1738668151480,0.379271,99225.0,99180.0,0.151239]
[1738668151711,0.53831095,99225.0,99224.0,0.00062627]
[1738668151940,0.54322397,99225.0,99224.0,0.00062627]
[1738668152451,0.59180001,99225.0,99224.0,0.00062627]
[1738668152720,0.59976001,99225.0,99224.0,0.00062627]
[1738668152974,0.59180001,99225.0,99224.0,0.00062627]
[1738668153203,0.59290512,99225.0,99224.0,0.00062627]
[1738668153422,0.35684512,99225.0,99224.0,0.00062627]
[1738668154139,0.50684512,99225.0,99224.0,0.00062627]
[1738668154381,0.46726908,99225.0,99224.0,0.00062627]
[1738668154873,0.47226908,99225.0,99224.0,0.00062627]
[1738668155113,0.45826908,99225.0,99224.0,0.00062627]
[1738668155344,0.45926908,99225.0,99224.0,0.00062627]
[1738668155552,0.46426908,99225.0,99224.0,0.00062627]
[1738668155846,0.45826908,99225.0,99224.0,0.00062627]
[1738668156096,0.25946908,99225.0,99224.0,0.00062627]
[1738668156358,0.41921337,99225.0,99224.0,0.00062627]
[1738668156591,0.26921337,99225.0,99224.0,0.00062627]
[1738668156762,0.41921337,99225.0,99224.0,0.00062627]
[1738668157036,0.40946908,99225.0,99224.0,0.00062627]
[1738668157247,0.41446908,99225.0,99224.0,0.00062627]
[1738668157464,0.40946908,99225.0,99224.0,0.00062627]
[1738668157665,0.41346908,99225.0,99224.0,0.00062627]
[1738668158131,0.15691302,99225.0,99224.0,0.00062627]
[1738668158447,0.15991302,99225.0,99224.0,0.00062627]
[1738668158612,0.15491302,99225.0,99224.0,0.00062627]
[1738668158832,0.00491302,99225.0,99224.0,0.00062627]
[1738668159050,0.01191302,99225.0,99224.0,0.00062627]
[1738668160053,0.201534,99239.0,99224.0,0.00062627]
[1738668160290,0.01006435,99235.0,99209.0,0.201593]
[1738668160549,0.003,99225.0,99216.0,0.00120925]
[1738668160798,0.003,99225.0,99211.0,0.00120928]
[1738668161033,0.003,99225.0,99212.0,0.10238506]
[1738668161271,0.151164,99230.0,99213.0,0.00120928]
[1738668161500,0.001,99225.0,99212.0,0.0012093]
[1738668161731,0.001,99225.0,99203.0,0.151204]
[1738668161952,0.21142591,99230.0,99205.0,0.1512]
[1738668162180,0.001,99225.0,99206.0,0.10359436]
[1738668162418,0.001,99225.0,99212.0,0.001]
[1738668162884,0.001,99225.0,99206.0,0.10359436]
[1738668163624,0.13629991,99220.0,99206.0,0.10359436]
[1738668164132,0.13629991,99220.0,99205.0,0.002]
[1738668164365,0.13629991,99220.0,99205.0,0.007]
[1738668164618,0.13629991,99220.0,99205.0,0.005]
[1738668164848,0.11729991,99220.0,99201.0,0.00051822]
[1738668165073,0.001,99220.0,99212.0,0.001]
[1738668165315,0.151189,99213.0,99212.0,0.001]
[1738668165545,0.001,99220.0,99206.0,0.0001069]
[1738668165763,0.002,99220.0,99206.0,0.0001069]
[1738668165981,0.13629991,99222.0,99206.0,0.0001069]
[1738668166287,0.13629991,99216.0,99206.0,0.0001069]
[1738668166536,0.151199,99207.0,99206.0,0.0001069]
[1738668166722,0.151197,99208.0,99206.0,0.0001069]
[1738668166964,0.13629991,99216.0,99206.0,0.0001069]
[1738668166965,0.151199,99207.0,99206.0,0.0001069]
[1738668167195,0.201582,99215.0,99206.0,0.0001069]
[1738668167410,0.151189,99213.0,99212.0,0.001]
[1738668167636,0.352775,99213.0,99206.0,0.0001069]
[1738668167838,0.151198,99208.0,99206.0,0.0001069]
[1738668168016,0.151198,99208.0,99206.0,0.0061069]
[1738668168294,0.152198,99208.0,99206.0,0.0061069]
[1738668168507,0.001,99208.0,99206.0,0.0021069]
[1738668168730,0.152198,99208.0,99206.0,0.0021069]
[1738668168947,0.151199,99207.0,99206.0,0.0001069]
[1738668169150,0.151199,99207.0,99206.0,0.0011069]
[1738668169653,0.16998546,99212.0,99206.0,0.0011069]
[1738668169868,0.151199,99207.0,99206.0,0.0051069]
[1738668170098,0.151199,99207.0,99206.0,0.0041069]
[1738668171422,0.151199,99207.0,99206.0,0.0001069]
[1738668171613,0.151199,99207.0,99206.0,0.0031069]
[1738668171880,0.151199,99207.0,99206.0,0.0011069]
[1738668172141,0.4819338,99207.0,99206.0,0.0011069]
[1738668172361,0.48068406,99207.0,99206.0,0.0011069]
[1738668172585,0.48068406,99207.0,99206.0,0.0001069]
[1738668172815,0.49080334,99207.0,99206.0,0.0001069]
[1738668173521,0.91311038,99207.0,99206.0,0.002]
[1738668173746,0.91311038,99207.0,99206.0,7.8e-07]
[1738668173747,1.0156051,99207.0,99206.0,7.8e-07]
[1738668174045,1.04573227,99207.0,99206.0,7.8e-07]
[1738668174287,2.54573227,99207.0,99206.0,7.8e-07]
[1738668174748,0.384636,99202.0,99201.0,0.00051822]
[1738668174987,0.49360222,99202.0,99201.0,0.00051822]
[1738668176119,0.50260222,99202.0,99201.0,0.00051822]
[1738668176326,0.51160222,99202.0,99201.0,0.00151822]
[1738668176537,2.01160222,99202.0,99201.0,0.00151822]
[1738668176758,2.04172939,99202.0,99201.0,0.00151822]
[1738668176966,2.04172939,99202.0,99201.0,0.00162512]
[1738668177190,0.54172939,99202.0,99201.0,0.00162512]
[1738668177626,2.04172939,99202.0,99201.0,0.00162512]
[1738668178320,2.04968939,99202.0,99201.0,0.00162512]
[1738668178540,2.0797685,99202.0,99201.0,0.00162512]
[1738668178766,2.0718085,99202.0,99201.0,0.00162512]
[1738668178983,2.0797685,99202.0,99201.0,0.00162512]
[1738668180547,0.54968939,99202.0,99201.0,0.00162512]
[1738668180793,0.53514823,99202.0,99201.0,0.00162512]
[1738668180992,0.19933317,99202.0,99201.0,0.00162512]
[1738668181852,0.18133317,99202.0,99201.0,0.00062512]
[1738668182048,0.03012717,99202.0,99201.0,0.00062512]
[1738668182262,0.02778517,99202.0,99201.0,0.00062512]
[1738668182471,0.02078517,99202.0,99201.0,0.00062512]
[1738668182687,0.01878517,99202.0,99201.0,0.00062512]
[1738668182890,0.02578517,99202.0,99201.0,0.00062512]
[1738668183339,0.02778517,99202.0,99201.0,0.00062512]
[1738668183550,0.009,99202.0,99201.0,0.00183465]
[1738668183763,0.009,99202.0,99201.0,0.00062512]
[1738668184227,0.002,99202.0,99201.0,0.00062512]
[1738668184431,0.153206,99202.0,99201.0,0.00562512]
[1738668184639,0.152206,99202.0,99201.0,0.00562512]
[1738668184845,0.152206,99202.0,99201.0,0.00062512]
[1738668185060,0.153206,99202.0,99201.0,0.00862512]
[1738668185266,0.153206,99202.0,99201.0,0.00262512]
[1738668185267,0.152206,99202.0,99201.0,0.00262512]
[1738668185499,0.1611169,99202.0,99201.0,0.00262512]
[1738668185722,0.1621169,99202.0,99201.0,0.00562512]
[1738668185924,0.1809054,99202.0,99201.0,0.00062512]
[1738668186135,0.1809054,99202.0,99201.0,0.00162512]
[1738668186347,0.1619054,99202.0,99201.0,0.00162512]
[1738668187228,0.1619054,99202.0,99201.0,0.00362512]
[1738668187437,0.3119054,99202.0,99201.0,0.00362512]
[1738668187651,0.3119054,99202.0,99201.0,0.00262512]
[1738668188066,0.3119054,99202.0,99201.0,0.00362512]
[1738668188483,0.41429046,99202.0,99201.0,0.00362512]
[1738668188688,0.47472046,99202.0,99201.0,0.00362512]
[1738668188898,0.55138305,99202.0,99201.0,0.00362512]
[1738668190675,0.55038305,99202.0,99201.0,0.00162512]
[1738668190932,0.55038305,99202.0,99201.0,0.00062512]
[1738668190933,0.55938305,99202.0,99201.0,0.00062512]
[1738668191146,0.57338305,99202.0,99201.0,0.00062512]
[1738668191588,0.58838305,99202.0,99201.0,0.00262512]
[1738668191810,0.58838305,99202.0,99201.0,0.00162512]
[1738668192233,0.59738305,99202.0,99201.0,0.00262512]
[1738668192446,0.86841445,99202.0,99201.0,0.00062512]
[1738668192768,0.87141445,99202.0,99201.0,0.00062512]
[1738668193190,0.81098445,99202.0,99201.0,0.00062512]
[1738668193809,0.173,99201.0,99170.0,0.0001069]
[1738668194023,0.151249,99174.0,99173.0,0.00057689]
[1738668194658,0.132249,99174.0,99173.0,0.00057689]
[1738668194866,0.1510375,99174.0,99173.0,0.00057689]
[1738668195065,0.15228724,99174.0,99173.0,0.00057689]
[1738668195276,0.15228724,99174.0,99173.0,0.00157689]
[1738668195487,0.15228724,99174.0,99173.0,0.00257689]
[1738668195911,0.15228724,99174.0,99173.0,0.00157689]
[1738668196324,0.132249,99174.0,99173.0,0.00157689]
[1738668196962,0.132249,99174.0,99173.0,0.00057689]
[1738668197171,0.132249,99174.0,99173.0,0.00157689]
[1738668197401,0.14227019,99174.0,99173.0,0.00257689]
[1738668199770,0.12327019,99174.0,99173.0,0.00257689]
[1738668199994,0.16127019,99174.0,99173.0,0.00257689]
[1738668200591,0.01002119,99174.0,99173.0,0.00257689]
[1738668200823,0.16127019,99174.0,99173.0,0.00257689]
[1738668201012,0.151249,99174.0,99173.0,0.00257689]
[1738668201260,0.15,99181.0,99173.0,0.00257689]
[1738668201476,0.151249,99174.0,99173.0,0.00257689]
[1738668202023,0.151249,99174.0,99173.0,0.00157689]
[1738668202406,0.1514735,99174.0,99173.0,0.00257689]
[1738668202612,0.0002245,99174.0,99173.0,0.00257689]
[1738668202744,0.1514735,99174.0,99173.0,0.00257689]
[1738668203156,0.0002245,99174.0,99173.0,0.00257689]
[1738668203595,0.0002245,99174.0,99173.0,0.00157689]
[1738668203794,0.1514735,99174.0,99173.0,0.00157689]
[1738668204109,0.0002245,99174.0,99173.0,0.00157689]
[1738668204572,0.0002245,99174.0,99173.0,0.08037689]
[1738668204783,0.15,99185.0,99173.0,0.08037689]
[1738668204951,0.151236,99183.0,99174.0,0.00120985]
[1738668205320,0.151237,99182.0,99174.0,0.00120985]
[1738668205773,0.01005877,99185.0,99175.0,0.10238506]
[1738668205967,0.151228,99188.0,99175.0,0.10238506]
[1738668206737,0.15,99189.0,99175.0,0.10238506]
[1738668206939,0.151229,99187.0,99175.0,0.10238506]
[1738668207343,0.14603094,99190.0,99176.0,0.00120978]
[1738668207546,0.001,99188.0,99177.0,0.10238506]
[1738668207763,0.001,99188.0,99179.0,0.0823]
[1738668207979,0.001,99188.0,99181.0,0.151238]
[1738668208202,0.001,99187.0,99182.0,0.10359462]
[1738668208626,0.00973103,99190.0,99182.0,0.10359462]
[1738668208844,0.151199,99207.0,99182.0,0.10359462]
[1738668209058,0.001,99188.0,99182.0,0.10359462]
[1738668209762,0.133205,99203.0,99182.0,0.10359462]
[1738668210213,0.201603,99205.0,99182.0,0.10359462]
[1738668210427,0.151203,99204.0,99182.0,0.10359462]
[1738668210637,0.001,99187.0,99182.0,0.10959462]
[1738668210868,0.151203,99204.0,99182.0,0.10359462]
[1738668211077,0.151203,99204.0,99182.0,0.10559462]
[1738668211294,0.001,99203.0,99182.0,0.11159462]
[1738668211517,0.001,99203.0,99182.0,0.12427337]
[1738668211727,0.01276358,99206.0,99182.0,0.11627337]
[1738668211967,0.01276358,99206.0,99182.0,0.11827337]
[1738668212455,0.01276358,99206.0,99185.0,0.201643]
[1738668212663,0.01276358,99206.0,99182.0,0.11827337]
[1738668212664,0.01276358,99206.0,99190.0,0.151224]
[1738668212881,0.01276358,99206.0,99191.0,0.1035945]
[1738668214610,0.01276358,99206.0,99191.0,0.1055945]
[1738668214821,0.13652441,99220.0,99191.0,0.1095945]
[1738668215666,0.0002245,99220.0,99191.0,0.1095945]
[1738668215880,0.151182,99218.0,99191.0,0.2608175]
[1738668216109,0.151182,99218.0,99191.0,0.1095945]
[1738668216344,0.201575,99219.0,99191.0,0.1075945]
[1738668216560,0.15118,99219.0,99191.0,0.1075945]
[1738668216770,0.13652441,99220.0,99191.0,0.1085945]
[1738668217266,0.151193,99211.0,99191.0,0.1075945]
[1738668217489,0.151193,99211.0,99191.0,0.1035945]
[1738668217722,0.14901366,99220.0,99192.0,0.00120947]
[1738668217940,0.15118,99219.0,99193.0,0.10238506]
[1738668218180,0.151182,99218.0,99194.0,0.00120941]
[1738668218404,0.151183,99218.0,99195.0,0.10359448]
[1738668218631,0.151184,99217.0,99195.0,0.10359448]
[1738668219086,0.14901366,99220.0,99195.0,0.10359448]
[1738668219315,0.14901366,99220.0,99195.0,0.10238506]
[1738668219316,0.13629991,99210.0,99195.0,0.10238506]
[1738668219555,0.13629991,99210.0,99191.0,0.001]
[1738668219832,0.11729991,99210.0,99192.0,0.10238506]
[1738668220314,0.151209,99201.0,99193.0,0.002]
[1738668220567,0.11729991,99210.0,99193.0,0.002]
[1738668220806,0.11729991,99210.0,99195.0,0.005]
[1738668221313,0.15121,99200.0,99195.0,0.005]
[1738668221566,0.15121,99200.0,99192.0,0.10238506]
[1738668221802,0.15121,99200.0,99192.0,0.10838506]
[1738668222044,0.151204,99204.0,99192.0,0.10838506]
[1738668222280,0.151203,99205.0,99192.0,0.10438506]
[1738668222510,0.11729991,99210.0,99195.0,0.003]
[1738668222750,0.201583,99215.0,99195.0,0.003]
[1738668223194,0.151188,99214.0,99195.0,0.003]
[1738668223426,0.151205,99204.0,99195.0,0.005]
[1738668223672,0.151205,99204.0,99195.0,0.002]
[1738668223877,0.151205,99203.0,99195.0,0.002]
[1738668224089,0.151208,99201.0,99195.0,0.002]
[1738668224514,0.151208,99201.0,99192.0,0.10738506]
[1738668224710,0.132208,99201.0,99195.0,0.003]
[1738668224967,0.15121,99200.0,99192.0,0.10238506]
[1738668225193,0.15121,99200.0,99195.0,0.002]
[1738668225415,0.554383,99209.0,99195.0,0.002]
[1738668225650,0.151209,99201.0,99195.0,0.002]
[1738668225860,0.15121,99200.0,99195.0,0.005]
[1738668226787,0.151211,99199.0,99195.0,0.005]
[1738668227187,0.151206,99203.0,99195.0,0.003]
[1738668227394,0.201596,99208.0,99195.0,0.003]
[1738668227627,0.151208,99201.0,99195.0,0.005]
[1738668227826,0.0002245,99210.0,99196.0,0.22799466]
[1738668228155,0.0002245,99210.0,99202.0,0.201608]
[1738668228376,0.0002245,99210.0,99203.0,0.10359429]
[1738668229487,0.0002245,99210.0,99204.0,0.151203]
[1738668229709,0.0002245,99210.0,99205.0,0.10359433]
[1738668229967,0.201547,99233.0,99205.0,0.10359433]
[1738668230186,0.151163,99231.0,99205.0,0.25479533]
[1738668230398,0.151167,99228.0,99205.0,0.10359433]
[1738668230827,0.01270739,99233.0,99205.0,0.10359433]
[1738668231042,0.151161,99232.0,99206.0,0.151199]
[1738668231282,0.01270739,99233.0,99207.0,0.10359431]
[1738668231522,0.01270739,99233.0,99210.0,0.13629991]
[1738668231737,0.01270739,99233.0,99211.0,0.18129424]
[1738668231946,0.01270739,99233.0,99212.0,0.201587]
[1738668232153,0.01270739,99233.0,99213.0,0.10359424]
[1738668234471,0.01270739,99233.0,99213.0,0.10559424]
[1738668234819,0.14486139,99236.0,99213.0,0.10359424]
[1738668235024,0.0002245,99238.0,99213.0,0.10359424]
[1738668235279,0.0002245,99238.0,99213.0,0.10959424]
[1738668235485,0.151159,99234.0,99213.0,0.10559424]
[1738668235691,0.151159,99234.0,99213.0,0.10759424]
[1738668236054,0.151159,99234.0,99213.0,0.10359424]
[1738668236412,0.151159,99234.0,99213.0,0.10759424]
[1738668236641,0.151156,99235.0,99213.0,0.10959424]
[1738668236852,0.0002245,99238.0,99213.0,0.10959424]
[1738668237068,0.201539,99236.0,99213.0,0.10959424]
[1738668237282,0.201537,99237.0,99213.0,0.10959424]
[1738668237494,0.151165,99229.0,99213.0,0.12221996]
[1738668237935,0.13629991,99230.0,99213.0,0.006]
[1738668238151,0.201553,99229.0,99213.0,0.002]
[1738668238370,0.13629991,99230.0,99204.0,0.02420931]
[1738668238582,0.151182,99218.0,99213.0,0.002]
[1738668238721,0.151179,99220.0,99213.0,0.006]
[1738668238936,0.151179,99220.0,99213.0,0.002]
[1738668239140,0.15118,99219.0,99206.0,0.023]
[1738668239340,0.151178,99221.0,99213.0,0.004]
[1738668239544,0.201561,99226.0,99213.0,0.002]
[1738668239849,0.09037759,99283.0,99213.0,0.002]
[1738668239850,0.151167,99228.0,99214.0,0.10238506]
[1738668240049,0.15,99243.0,99215.0,0.023]
[1738668240298,0.15,99243.0,99213.0,0.00720928]
[1738668240299,0.2860314,99244.0,99222.0,0.023]
[1738668240506,0.2860314,99244.0,99224.0,0.023]
[1738668240713,0.2860314,99244.0,99225.0,0.10359419]
[1738668240914,0.2860314,99244.0,99225.0,0.10238506]
[1738668241125,0.15116,99232.0,99225.0,0.10238506]
[1738668241323,0.201537,99237.0,99225.0,0.10238506]
[1738668241540,0.15115,99239.0,99225.0,0.10238506]
[1738668241742,0.201527,99242.0,99225.0,0.10238506]
[1738668241950,0.151149,99240.0,99225.0,0.10238506]
[1738668242159,0.2860314,99244.0,99225.0,0.10438506]
[1738668242449,0.151155,99236.0,99226.0,0.00120916]
[1738668242672,0.151155,99236.0,99225.0,0.10438506]
[1738668242938,0.151154,99237.0,99225.0,0.10638506]
[1738668243165,0.151145,99243.0,99226.0,0.023]
[1738668243386,0.151135,99249.0,99228.0,0.023]
[1738668243601,0.151138,99247.0,99230.0,0.023]
[1738668243812,0.20152,99246.0,99231.0,0.10238506]
[1738668244051,0.151138,99247.0,99231.0,0.10238506]
[1738668244292,0.151134,99250.0,99231.0,0.10238506]
[1738668244530,0.0002245,99238.0,99231.0,0.10238506]
[1738668244749,0.0002245,99238.0,99233.0,0.023]
[1738668244964,0.0002245,99238.0,99233.0,0.12659395]
[1738668245851,0.14486026,99257.0,99234.0,0.023]
[1738668246068,0.20145,99281.0,99236.0,0.023]
[1738668246069,0.20148,99265.0,99236.0,0.023]
[1738668246285,0.151131,99252.0,99238.0,0.02226601]
[1738668246513,0.151137,99248.0,99239.0,0.10238506]
[1738668246749,0.151134,99250.0,99239.0,0.10238506]
[1738668246961,0.201484,99263.0,99239.0,0.10238506]
[1738668247168,0.151131,99252.0,99239.0,0.10238506]
[1738668247383,0.201486,99262.0,99239.0,0.10238506]
[1738668247607,0.151134,99250.0,99239.0,0.10238506]
[1738668247826,0.201507,99252.0,99239.0,0.10238506]
[1738668248082,0.201499,99256.0,99239.0,0.10238506]
[1738668248316,0.151116,99262.0,99240.0,0.13750888]
[1738668248551,0.201484,99263.0,99241.0,0.10238506]
[1738668248786,0.201484,99263.0,99242.0,0.0012089]
[1738668248996,0.151121,99258.0,99243.0,0.10359396]
[1738668249211,0.0477,99268.0,99243.0,0.10359396]
[1738668249414,0.151123,99257.0,99244.0,0.0012089]
[1738668249635,0.151123,99257.0,99245.0,0.10238506]
[1738668249808,0.132123,99257.0,99245.0,0.10238506]
[1738668250697,0.201491,99260.0,99245.0,0.10238506]
[1738668250903,0.00124974,99259.0,99233.0,0.0001412]
[1738668251128,0.151142,99244.0,99242.0,0.001]
[1738668251603,0.0787,99257.0,99242.0,0.001]
[1738668251604,0.151136,99249.0,99242.0,0.001]
[1738668251831,0.151139,99246.0,99242.0,0.001]
[1738668252074,0.151143,99244.0,99243.0,0.004]
[1738668252318,0.196443,99244.0,99243.0,0.004]
[1738668252996,0.201535,99239.0,99233.0,0.0001412]
[1738668253229,0.0453,99244.0,99233.0,0.0001412]
[1738668253230,0.151157,99234.0,99233.0,0.0001412]
[1738668254585,0.16390244,99234.0,99233.0,0.0001412]
[1738668254807,0.01274544,99234.0,99233.0,0.0001412]
[1738668255025,0.151149,99240.0,99233.0,0.0011412]
[1738668255296,0.15,99246.0,99233.0,0.0011412]
[1738668255521,0.21378345,99244.0,99233.0,0.0051412]
[1738668255964,0.01225945,99244.0,99235.0,0.023]
[1738668256207,0.01225945,99244.0,99237.0,0.023]
[1738668256432,0.151126,99255.0,99238.0,0.10359403]
[1738668256886,0.0813069,99265.0,99238.0,0.10359403]
[1738668257119,0.201503,99254.0,99233.0,0.0011412]
[1738668257382,0.151157,99234.0,99233.0,0.0011412]
[1738668257631,0.151157,99234.0,99233.0,0.0001412]
[1738668257887,0.151157,99234.0,99233.0,0.0011412]
[1738668258362,0.151157,99234.0,99233.0,0.0001412]
[1738668258848,0.151157,99234.0,99233.0,0.0011412]
[1738668259081,0.151157,99234.0,99233.0,0.0051412]
[1738668259312,0.151157,99234.0,99233.0,0.0041412]
[1738668259560,0.151157,99234.0,99233.0,0.0051412]
[1738668259797,0.13340674,99234.0,99233.0,0.0051412]
[1738668260385,0.132157,99234.0,99233.0,0.0051412]
[1738668262024,0.14461372,99234.0,99233.0,0.0051412]
[1738668262734,0.29461372,99234.0,99233.0,0.0051412]
[1738668263693,0.29461372,99234.0,99233.0,0.00536569]
[1738668263888,0.29461372,99234.0,99233.0,0.00436569]
[1738668264128,0.29461372,99234.0,99233.0,0.00536569]
[1738668264781,0.27561372,99234.0,99233.0,0.00036569]
[1738668265010,0.16253168,99234.0,99233.0,0.00036569]
[1738668265220,0.31368868,99234.0,99233.0,0.00036569]